fUST/lending_fUST_20250627
["ID","MTS","AMOUNT","RATE_DAILY","PERIOD"]
[368035086,1751001044666,-460.0,0.00019452,2]
[368035088,1751001044676,-460.0,0.00019452,2]
[368035090,1751001044685,-460.0,0.00019452,2]
[368035092,1751001044695,-669.65,0.00019452,2]
[368035094,1751001044705,-1198.54,0.00019452,2]
[368035096,1751001044715,-2475.01,0.00019452,2]
[368035098,1751001044724,-460.0,0.00019452,2]
[368035100,1751001044734,-2609.67,0.00019452,2]
[368035102,1751001044743,-460.0,0.00019452,2]
[368035104,1751001044752,-460.0,0.00019452,2]
[368035105,1751001044763,-460.0,0.00019452,2]
[368035107,1751001044772,-774.49,0.00019452,2]
[368035109,1751001044781,-460.0,0.00019452,2]
[368035111,1751001044790,-474.92,0.00019452,2]
[368035113,1751001044800,-1000.96,0.00019452,2]
[368035115,1751001044809,-460.0,0.00019452,2]
[368035117,1751001044818,-1233.44,0.00019452,2]
[368035119,1751001044828,-460.0,0.00019452,2]
[368035121,1751001044838,-460.0,0.00019452,2]
[368035123,1751001044847,-460.0,0.00019452,2]
[368035125,1751001044857,-460.0,0.00019452,2]
[368035127,1751001044866,-865.09,0.00019506,2]
[368035129,1751001044875,-1032.31998066,0.00019694,2]
[368035131,1751001044885,-151.0,0.000197,2]
[368035133,1751001044894,-500.0,0.00019725,2]
[368035135,1751001044904,-500.0,0.00019725,2]
[368035137,1751001044913,-865.09,0.00019725,2]
[368035139,1751001044923,-865.09,0.00019725,2]
[368035141,1751001044932,-865.09,0.00019725,2]
[368035143,1751001044942,-865.09,0.00019725,2]
[368035145,1751001044951,-460.0,0.00019726,2]
[368035147,1751001044960,-460.0,0.00019726,2]
[368035149,1751001044969,-460.0,0.00019726,2]
[368035151,1751001044978,-154.46,0.00019726,2]
[368035153,1751001044987,-460.0,0.00019726,2]
[368035155,1751001044996,-460.0,0.00019726,2]
[368035157,1751001045006,-460.0,0.00019726,2]
[368035159,1751001045019,-460.0,0.00019726,2]
[368035161,1751001045028,-484.44,0.00019726,2]
[368035163,1751001045038,-179.82199852,0.00019726,2]
[368035165,1751001045047,-460.0,0.00019726,2]
[368035167,1751001045057,-460.0,0.00019726,2]
[368035169,1751001045067,-460.0,0.00019726,2]
[368035171,1751001045076,-582.4,0.00019726,2]
[368035173,1751001045085,-460.0,0.00019726,2]
[368035175,1751001045096,-998.79,0.00019726,2]
[368035178,1751001045107,-601.85523965,0.00019726,2]
[368035179,1751001045117,-460.0,0.00019726,2]
[368035181,1751001045125,-460.0,0.00019726,2]
[368035183,1751001045135,-296.48581044,0.00019726,2]
[368035185,1751001045144,-460.0,0.00019726,2]
[368035187,1751001045153,-460.0,0.00019726,2]
[368035189,1751001045163,-517.34,0.00019726,2]
[368035191,1751001045171,-460.0,0.00019726,2]
[368035193,1751001045181,-460.0,0.00019726,2]
[368035196,1751001045191,-460.0,0.00019726,2]
[368035198,1751001045200,-460.0,0.00019726,2]
[368035200,1751001045210,-460.0,0.00019726,2]
[368035202,1751001045219,-460.0,0.00019726,2]
[368035203,1751001045229,-460.0,0.00019726,2]
[368035206,1751001045238,-460.0,0.00019726,2]
[368035208,1751001045247,-460.0,0.00019726,2]
[368035210,1751001045257,-1076.21,0.00019726,2]
[368035212,1751001045266,-460.0,0.00019726,2]
[368035214,1751001045275,-460.0,0.00019726,2]
[368035215,1751001045283,-460.0,0.00019726,2]
[368035217,1751001045292,-460.0,0.00019726,2]
[368035220,1751001045302,-528.95769746,0.00019726,2]
[368035222,1751001045311,-460.0,0.00019726,2]
[368035224,1751001045321,-460.0,0.00019726,2]
[368035226,1751001045330,-460.0,0.00019726,2]
[368035228,1751001045339,-285.9401051,0.00019726,2]
[368035230,1751001045349,-460.0,0.00019726,2]
[368035232,1751001045358,-460.0,0.00019726,2]
[368035234,1751001045368,-460.0,0.00019726,2]
[368035236,1751001045378,-460.0,0.00019726,2]
[368035238,1751001045387,-322.40624098,0.00019726,2]
[368035240,1751001045396,-460.0,0.00019726,2]
[368035242,1751001045406,-460.0,0.00019726,2]
[368035244,1751001045415,-460.0,0.00019726,2]
[368035246,1751001045425,-530.34,0.00019726,2]
[368035248,1751001045434,-460.0,0.00019726,2]
[368035250,1751001045443,-460.0,0.00019726,2]
[368035252,1751001045453,-460.0,0.00019726,2]
[368035254,1751001045462,-460.0,0.00019726,2]
[368035256,1751001045471,-460.0,0.00019726,2]
[368035258,1751001045480,-460.0,0.00019726,2]
[368035260,1751001045489,-801.9,0.00019726,2]
[368035262,1751001045498,-460.0,0.00019726,2]
[368035264,1751001045508,-460.0,0.00019726,2]
[368035266,1751001045518,-460.0,0.00019726,2]
[368035268,1751001045527,-551.24,0.00019726,2]
[368035270,1751001045537,-460.0,0.00019726,2]
[368035272,1751001045546,-460.0,0.00019726,2]
[368035274,1751001045555,-569.52,0.00019726,2]
[368035276,1751001045565,-419.03673368,0.00019726,2]
[368035278,1751001045575,-460.0,0.00019726,2]
[368035280,1751001045584,-460.0,0.00019726,2]
[368035282,1751001045593,-482.45,0.00019726,2]
[368035284,1751001045602,-2047.01,0.00019726,2]
[368035286,1751001045612,-560.03,0.00019726,2]
[368035288,1751001045621,-995.48,0.00019726,2]
[368035290,1751001045630,-460.0,0.00019726,2]
[368035292,1751001045639,-460.0,0.00019726,2]
[368035294,1751001045648,-565.35,0.00019726,2]
[368035296,1751001045657,-527.16,0.00019726,2]
[368035298,1751001045666,-610.08,0.00019726,2]
[368035300,1751001045675,-460.0,0.00019726,2]
[368035302,1751001045684,-460.0,0.00019726,2]
[368035304,1751001045694,-460.0,0.00019726,2]
[368035306,1751001045712,-460.0,0.00019726,2]
[368035308,1751001045722,-2134.04,0.00019726,2]
[368035310,1751001045731,-2845.29,0.00019726,2]
[368035312,1751001045740,-460.0,0.00019726,2]
[368035314,1751001045750,-460.0,0.00019726,2]
[368035316,1751001045762,-460.0,0.00019726,2]
[368035318,1751001045772,-3004.48,0.00019726,2]
[368035320,1751001045792,-460.0,0.00019726,2]
[368035322,1751001045813,-460.0,0.00019726,2]
[368035324,1751001045835,-460.0,0.00019726,2]
[368035326,1751001045860,-460.0,0.00019726,2]
[368035328,1751001045883,-614.67,0.00019726,2]
[368035330,1751001045905,-2894.9,0.00019726,2]
[368035332,1751001045926,-460.0,0.00019726,2]
[368035334,1751001045946,-460.0,0.00019726,2]
[368035336,1751001045967,-886.62,0.00019726,2]
[368035338,1751001045988,-1050.51,0.00019726,2]
[368035340,1751001046008,-1507.3,0.00019726,2]
[368035342,1751001046032,-1906.47,0.00019726,2]
[368035345,1751001046056,-543.97492755,0.00019726,2]
[368035348,1751001046079,-178.57979428,0.00019726,2]
[368035350,1751001046089,-460.0,0.00019726,2]
[368035352,1751001046099,-460.0,0.00019726,2]
[368035354,1751001046108,-460.0,0.00019726,2]
[368035356,1751001046118,-460.0,0.00019726,2]
[368035358,1751001046127,-460.0,0.00019726,2]
[368035360,1751001046137,-819.23,0.00019726,2]
[368035362,1751001046146,-440.0,0.00019726,2]
[368035364,1751001046155,-5474.85,0.00019726,2]
[368035366,1751001046165,-460.0,0.00019726,2]
[368035368,1751001046175,-460.0,0.00019726,2]
[368035370,1751001046184,-764.31,0.00019726,2]
[368035372,1751001046193,-460.0,0.00019726,2]
[368035374,1751001046203,-3659.13,0.00019726,2]
[368035376,1751001046212,-460.0,0.00019726,2]
[368035378,1751001046222,-574.58,0.00019726,2]
[368035380,1751001046231,-2974.23,0.00019726,2]
[368035382,1751001046241,-460.0,0.00019726,2]
[368035384,1751001046250,-460.0,0.00019726,2]
[368035386,1751001046260,-927.68,0.00019726,2]
[368035388,1751001046269,-460.0,0.00019726,2]
[368035390,1751001046279,-460.0,0.00019726,2]
[368035392,1751001046291,-462.4,0.00019726,2]
[368035394,1751001046301,-1972.61,0.00019726,2]
[368035396,1751001046311,-460.0,0.00019726,2]
[368035398,1751001046320,-876.56,0.00019726,2]
[368035400,1751001046330,-640.5,0.00019726,2]
[368035402,1751001046339,-460.0,0.00019726,2]
[368035404,1751001046349,-1966.9,0.00019726,2]
[368035406,1751001046358,-466.64,0.00019726,2]
[368035408,1751001046367,-460.0,0.00019726,2]
[368035410,1751001046377,-460.0,0.00019726,2]
[368035412,1751001046388,-460.0,0.00019726,2]
[368035414,1751001046397,-2094.92,0.00019726,2]
[368035416,1751001046407,-808.1,0.00019726,2]
[368035418,1751001046417,-460.0,0.00019726,2]
[368035420,1751001046426,-460.0,0.00019726,2]
[368035421,1751001046435,-460.0,0.00019726,2]
[368035424,1751001046445,-669.65,0.00019726,2]
[368035426,1751001046455,-1198.54,0.00019726,2]
[368035427,1751001046464,-2475.01,0.00019726,2]
[368035429,1751001046474,-460.0,0.00019726,2]
[368035431,1751001046483,-2609.67,0.00019726,2]
[368035433,1751001046494,-460.0,0.00019726,2]
[368035435,1751001046503,-460.0,0.00019726,2]
[368035437,1751001046513,-774.49,0.00019726,2]
[368035439,1751001046522,-460.0,0.00019726,2]
[368035441,1751001046532,-474.92,0.00019726,2]
[368035443,1751001046541,-1000.96,0.00019726,2]
[368035445,1751001046551,-460.0,0.00019726,2]
[368035447,1751001046560,-1233.44,0.00019726,2]
[368035449,1751001046570,-460.0,0.00019726,2]
[368035451,1751001046579,-460.0,0.00019726,2]
[368035453,1751001046589,-460.0,0.00019726,2]
[368035455,1751001046599,-500.0,0.00019726,2]
[368035457,1751001046608,-160.46873652,0.00019726,2]
[368035459,1751001046619,-500.54053299,0.00019744,2]
[368035461,1751001046629,-865.09,0.00019746,2]
[368035463,1751001046639,-500.0,0.00019746,2]
[368035465,1751001046648,-500.55681391,0.00019747,2]
[368035467,1751001046657,-582.60944418,0.00019747,2]
[368035469,1751001046666,-500.85840275,0.00019753,2]
[368035471,1751001046676,-500.0,0.00019755,2]
[368035473,1751001046686,-500.0,0.00019755,2]
[368035475,1751001046695,-500.0,0.00019755,2]
[368035477,1751001046705,-500.0,0.0001976,2]
[368035479,1751001046715,-500.0,0.00019777,2]
[368035481,1751001046724,-500.0,0.00019785,2]
[368035483,1751001046734,-500.0,0.00019785,2]
[368035485,1751001046743,-450.11997304,0.00019785,2]
[368035487,1751001046753,-500.75103326,0.00019785,2]
[368035489,1751001046763,-501.04519411,0.00019785,2]
[368035491,1751001046772,-500.0,0.00019785,2]
[368035507,1751001046915,-500.36063158,0.00019785,2]
[368035508,1751001046925,-500.0,0.00019882,2]
[368035510,1751001046935,-349.3893349,0.00019882,2]
[368035513,1751001046944,-501.01939852,0.00019882,2]
[368035515,1751001046954,-151.0,0.000199,2]
[368035516,1751001046964,-160283.36588,0.00019903,2]
[368035518,1751001046973,-865.09,0.00019904,2]
[368035520,1751001046982,-865.09,0.00019904,2]
[368035522,1751001046992,-865.09,0.00019904,2]
[368035524,1751001047001,-865.09,0.00019904,2]
[368035526,1751001047011,-865.31618838,0.00019904,2]
[368035528,1751001047020,-292.69191987,0.00019999,2]
[368035530,1751001047030,-460.0,0.0002,2]
[368035532,1751001047039,-460.0,0.0002,2]
[368035534,1751001047049,-500.0,0.0002,2]
[368035536,1751001047058,-4291.0,0.0002,2]
[368035538,1751001047068,-460.0,0.0002,2]
[368035540,1751001047078,-460.0,0.0002,2]
[368035542,1751001047087,-460.0,0.0002,2]
[368035544,1751001047097,-460.0,0.0002,2]
[368035546,1751001047107,-460.0,0.0002,2]
[368035549,1751001047116,-460.0,0.0002,2]
[368035550,1751001047126,-582.4,0.0002,2]
[368035553,1751001047135,-460.0,0.0002,2]
[368035554,1751001047144,-998.79,0.0002,2]
[368035556,1751001047154,-460.0,0.0002,2]
[368035558,1751001047163,-460.0,0.0002,2]
[368035561,1751001047173,-460.0,0.0002,2]
[368035563,1751001047183,-517.34,0.0002,2]
[368035565,1751001047193,-460.0,0.0002,2]
[368035566,1751001047203,-460.0,0.0002,2]
[368035569,1751001047212,-460.0,0.0002,2]
[368035571,1751001047222,-460.0,0.0002,2]
[368035572,1751001047231,-460.0,0.0002,2]
[368035574,1751001047241,-460.0,0.0002,2]
[368035576,1751001047251,-460.0,0.0002,2]
[368035578,1751001047260,-1076.21,0.0002,2]
[368035580,1751001047270,-557.09271926,0.0002,2]
[368035582,1751001047279,-460.0,0.0002,2]
[368035584,1751001047291,-346.66027575,0.0002,2]
[368035586,1751001047300,-460.0,0.0002,2]
[368035588,1751001047310,-460.0,0.0002,2]
[368035590,1751001047319,-460.0,0.0002,2]
[368035592,1751001047328,-460.0,0.0002,2]
[368035594,1751001047338,-460.0,0.0002,2]
[368035596,1751001047348,-460.0,0.0002,2]
[368035598,1751001047358,-460.0,0.0002,2]
[368035600,1751001047368,-460.0,0.0002,2]
[368035602,1751001047378,-460.0,0.0002,2]
[368035604,1751001047387,-530.34,0.0002,2]
[368035606,1751001047396,-460.0,0.0002,2]
[368035607,1751001047406,-460.0,0.0002,2]
[368035609,1751001047415,-460.0,0.0002,2]
[368035611,1751001047425,-460.0,0.0002,2]
[368035613,1751001047436,-460.0,0.0002,2]
[368035615,1751001047446,-801.9,0.0002,2]
[368035617,1751001047455,-460.0,0.0002,2]
[368035619,1751001047464,-460.0,0.0002,2]
[368035621,1751001047473,-460.0,0.0002,2]
[368035623,1751001047482,-551.24,0.0002,2]
[368035625,1751001047491,-460.0,0.0002,2]
[368035627,1751001047501,-569.52,0.0002,2]
[368035629,1751001047511,-460.0,0.0002,2]
[368035631,1751001047520,-460.0,0.0002,2]
[368035633,1751001047529,-482.45,0.0002,2]
[368035635,1751001047538,-2047.01,0.0002,2]
[368035637,1751001047548,-560.03,0.0002,2]
[368035639,1751001047557,-995.48,0.0002,2]
[368035641,1751001047567,-460.0,0.0002,2]
[368035643,1751001047576,-460.0,0.0002,2]
[368035645,1751001047585,-565.35,0.0002,2]
[368035647,1751001047595,-527.16,0.0002,2]
[368035649,1751001047604,-610.08,0.0002,2]
[368035651,1751001047614,-460.0,0.0002,2]
[368035653,1751001047623,-460.0,0.0002,2]
[368035655,1751001047633,-460.0,0.0002,2]
[368035657,1751001047642,-460.0,0.0002,2]
[368035659,1751001047651,-2134.04,0.0002,2]
[368035661,1751001047660,-2845.29,0.0002,2]
[368035663,1751001047670,-460.0,0.0002,2]
[368035665,1751001047679,-460.0,0.0002,2]
[368035667,1751001047689,-460.0,0.0002,2]
[368035669,1751001047698,-3004.48,0.0002,2]
[368035670,1751001047708,-460.0,0.0002,2]
[368035672,1751001047717,-460.0,0.0002,2]
[368035674,1751001047727,-460.0,0.0002,2]
[368035676,1751001047737,-460.0,0.0002,2]
[368035678,1751001047747,-614.67,0.0002,2]
[368035680,1751001047756,-2894.9,0.0002,2]
[368035682,1751001047765,-460.0,0.0002,2]
[368035684,1751001047774,-460.0,0.0002,2]
[368035686,1751001047784,-886.62,0.0002,2]
[368035688,1751001047794,-1050.51,0.0002,2]
[368035690,1751001047804,-1507.3,0.0002,2]
[368035692,1751001047813,-1906.47,0.0002,2]
[368035694,1751001047822,-460.0,0.0002,2]
[368035696,1751001047832,-460.0,0.0002,2]
[368035699,1751001047850,-460.0,0.0002,2]
[368035701,1751001047862,-460.0,0.0002,2]
[368035703,1751001047872,-819.23,0.0002,2]
[368035705,1751001047882,-5474.85,0.0002,2]
[368035707,1751001047892,-460.0,0.0002,2]
[368035709,1751001047902,-764.31,0.0002,2]
[368035711,1751001047912,-460.0,0.0002,2]
[368035712,1751001047922,-3659.13,0.0002,2]
[368035713,1751001047932,-460.0,0.0002,2]
[368035714,1751001047942,-574.58,0.0002,2]
[368035715,1751001047952,-2974.23,0.0002,2]
[368035716,1751001047962,-460.0,0.0002,2]
[368035717,1751001047972,-460.0,0.0002,2]
[368035718,1751001047982,-927.68,0.0002,2]
[368035719,1751001047992,-460.0,0.0002,2]
[368035720,1751001048002,-462.4,0.0002,2]
[368035721,1751001048012,-1972.61,0.0002,2]
[368035722,1751001048022,-460.0,0.0002,2]
[368035723,1751001048032,-876.56,0.0002,2]
[368035724,1751001048042,-640.5,0.0002,2]
[368035725,1751001048052,-1966.9,0.0002,2]
[368035726,1751001048062,-569.10819402,0.0002,2]
[368035727,1751001048072,-466.64,0.0002,2]
[368035728,1751001048082,-460.0,0.0002,2]
[368035729,1751001048092,-460.0,0.0002,2]
[368035730,1751001048103,-460.0,0.0002,2]
[368035731,1751001048112,-2094.92,0.0002,2]
[368035732,1751001048123,-808.1,0.0002,2]
[368035733,1751001048132,-460.0,0.0002,2]
[368035734,1751001048143,-460.0,0.0002,2]
[368035735,1751001048153,-460.0,0.0002,2]
[368035736,1751001048163,-669.65,0.0002,2]
[368035737,1751001048173,-1198.54,0.0002,2]
[368035738,1751001048183,-2475.01,0.0002,2]
[368035739,1751001048193,-460.0,0.0002,2]
[368035740,1751001048204,-2609.67,0.0002,2]
[368035741,1751001048214,-460.0,0.0002,2]
[368035742,1751001048224,-460.0,0.0002,2]
[368035743,1751001048234,-774.49,0.0002,2]
[368035744,1751001048244,-460.0,0.0002,2]
[368035745,1751001048254,-474.92,0.0002,2]
[368035746,1751001048264,-1000.96,0.0002,2]
[368035747,1751001048274,-460.0,0.0002,2]
[368035748,1751001048284,-1233.44,0.0002,2]
[368035749,1751001048293,-460.0,0.0002,2]
[368035750,1751001048303,-460.0,0.0002,2]
[368035751,1751001048314,-2323.0,0.00020013,2]
[368035752,1751001048324,-300.0,0.00020027,2]
[368035753,1751001048335,-847.04181546,0.00020029,2]
[368035754,1751001048345,-836.98798914,0.00020029,2]
[368035755,1751001048355,-12562.41216491,0.00020029,2]
[368035756,1751001048365,-214.91804724,0.00020029,2]
[368035757,1751001048375,-160.0,0.00020029,2]
[368035758,1751001048384,-230.26210603,0.00020029,2]
[368035759,1751001048394,-160.0,0.00020029,2]
[368035760,1751001048404,-213.75309343,0.00020029,2]
[368035761,1751001048414,-160.0,0.00020029,2]
[368035762,1751001048424,-160.0,0.0002003,2]
[368035763,1751001048433,-160.0,0.0002003,2]
[368035764,1751001048443,-160.0,0.0002003,2]
[368035765,1751001048453,-160.0,0.0002003,2]
[368035766,1751001048463,-160.0,0.0002003,2]
[368035767,1751001048472,-160.0,0.0002003,2]
[368035768,1751001048482,-6537.875941,0.0002003,2]
[368035769,1751001048492,-1032.31998066,0.00020036,2]
[368035770,1751001048507,-151.0,0.00020038,2]
[368035771,1751001048517,-25000.0,0.00020038,2]
[368035772,1751001048527,-151.0,0.00020038,2]
[368035773,1751001048537,-505.25517257,0.00020038,2]
[368035774,1751001048547,-277.6118644,0.00020038,2]
[368035775,1751001048556,-5000.0,0.00020038,2]
[368035776,1751001048567,-19610.2874556,0.00020038,2]
[368035777,1751001048577,-666.0,0.00020038,2]
[368035778,1751001048587,-500.0,0.00020038,2]
[368035779,1751001048597,-275.86690619,0.00020038,2]
[368035780,1751001048606,-500.0,0.00020038,2]
[368035781,1751001048616,-151.0,0.00020038,2]
[368035782,1751001048626,-541.20408582,0.00020038,2]
[368035783,1751001048635,-151.0,0.00020038,2]
[368035784,1751001048645,-500.0,0.00020038,2]
[368035785,1751001048655,-500.0,0.00020038,2]
[368035786,1751001048665,-151.0,0.00020038,2]
[368035787,1751001048674,-500.0,0.00020038,2]
[368035788,1751001048684,-151.0,0.00020038,2]
[368035789,1751001048693,-151.0,0.00020038,2]
[368035790,1751001048703,-500.0,0.00020038,2]
[368035791,1751001048712,-151.0,0.00020038,2]
[368035792,1751001048722,-151.0,0.00020038,2]
[368035793,1751001048731,-500.0,0.00020038,2]
[368035794,1751001048742,-237.25150823,0.00020038,2]
[368035796,1751001048751,-199.98954325,0.00020038,2]
[368035798,1751001048761,-500.0,0.00020038,2]
[368035800,1751001048771,-500.0,0.00020038,2]
[368035802,1751001048780,-500.0,0.00020038,2]
[368035803,1751001048789,-500.0,0.00020038,2]
[368035804,1751001048799,-500.0,0.00020038,2]
[368035805,1751001048809,-500.0,0.00020038,2]
[368035806,1751001048819,-500.0,0.00020038,2]
[368035807,1751001048828,-500.0,0.00020038,2]
[368035808,1751001048837,-500.0,0.00020038,2]
[368035809,1751001048847,-207.4,0.00020038,2]
[368035810,1751001048856,-500.0,0.00020038,2]
[368035811,1751001048867,-500.0,0.00020038,2]
[368035812,1751001048876,-500.0,0.00020038,2]
[368035813,1751001048887,-530.23477399,0.00020038,2]
[368035814,1751001048897,-690.642,0.00020093,2]
[368035815,1751001048906,-500.0,0.00020096,2]
[368035816,1751001048916,-2323.0,0.00020129,2]
[368035817,1751001048926,-716.195754,0.00020148,2]
[368035818,1751001048936,-151.0,0.000202,4]
[368035819,1751001048945,-742.6949969,0.00020203,2]
[368035820,1751001048955,-770.17471178,0.00020258,2]
[368035821,1751001048964,-586.08574951,0.00020273,2]
[368035822,1751001048974,-460.0,0.00020273,2]
[368035823,1751001048983,-460.0,0.00020273,2]
[368035824,1751001048993,-460.0,0.00020273,2]
[368035825,1751001049003,-460.0,0.00020273,2]
[368035826,1751001049012,-460.0,0.00020273,2]
[368035827,1751001049022,-587.74906325,0.00020273,2]
[368035828,1751001049031,-460.0,0.00020273,2]
[368035829,1751001049041,-460.0,0.00020273,2]
[368035830,1751001049050,-582.4,0.00020273,2]
[368035831,1751001049060,-460.0,0.00020273,2]
[368035832,1751001049069,-998.79,0.00020273,2]
[368035833,1751001049079,-518.98,0.00020273,2]
[368035834,1751001049088,-460.0,0.00020273,2]
[368035835,1751001049098,-460.0,0.00020273,2]
[368035836,1751001049107,-517.34,0.00020273,2]
[368035837,1751001049117,-460.0,0.00020273,2]
[368035838,1751001049127,-460.0,0.00020273,2]
[368035839,1751001049136,-460.0,0.00020273,2]
[368035840,1751001049146,-460.0,0.00020273,2]
[368035841,1751001049155,-1076.21,0.00020273,2]
[368035842,1751001049165,-460.0,0.00020273,2]
[368035843,1751001049175,-460.0,0.00020273,2]
[368035844,1751001049184,-460.0,0.00020273,2]
[368035845,1751001049194,-460.0,0.00020273,2]
[368035846,1751001049203,-460.0,0.00020273,2]
[368035847,1751001049212,-460.0,0.00020273,2]
[368035848,1751001049223,-460.0,0.00020273,2]
[368035849,1751001049232,-460.0,0.00020273,2]
[368035850,1751001049242,-460.0,0.00020273,2]
[368035851,1751001049252,-460.0,0.00020273,2]
[368035852,1751001049261,-530.34,0.00020273,2]
[368035853,1751001049270,-238.73031473,0.00020273,2]
[368035854,1751001049280,-460.0,0.00020273,2]
[368035855,1751001049291,-294.85625273,0.00020273,2]
[368035856,1751001049301,-460.0,0.00020273,2]
[368035857,1751001049362,-451.26083996,0.00020273,2]
[368035858,1751001049373,-801.9,0.00020273,2]
[368035859,1751001049383,-476.44649756,0.00020273,2]
[368035860,1751001049393,-460.0,0.00020273,2]
[368035861,1751001049402,-460.0,0.00020273,2]
[368035862,1751001049412,-551.24,0.00020273,2]
[368035863,1751001049422,-460.0,0.00020273,2]
[368035864,1751001049431,-569.52,0.00020273,2]
[368035865,1751001049440,-460.0,0.00020273,2]
[368035866,1751001049450,-460.0,0.00020273,2]
[368035867,1751001049459,-482.45,0.00020273,2]
[368035868,1751001049468,-2047.01,0.00020273,2]
[368035869,1751001049477,-560.03,0.00020273,2]
[368035870,1751001049486,-995.48,0.00020273,2]
[368035871,1751001049495,-460.0,0.00020273,2]
[368035872,1751001049505,-460.0,0.00020273,2]
[368035873,1751001049514,-151.0,0.00020273,2]
[368035874,1751001049524,-565.35,0.00020273,2]
[368035875,1751001049534,-527.16,0.00020273,2]
[368035876,1751001049544,-610.08,0.00020273,2]
[368035877,1751001049553,-460.0,0.00020273,2]
[368035878,1751001049562,-460.0,0.00020273,2]
[368035879,1751001049572,-460.0,0.00020273,2]
[368035880,1751001049581,-2134.04,0.00020273,2]
[368035881,1751001049590,-2845.29,0.00020273,2]
[368035882,1751001049600,-151.0,0.00020273,2]
[368035883,1751001049610,-460.0,0.00020273,2]
[368035884,1751001049629,-460.0,0.00020273,2]
[368035885,1751001049651,-460.0,0.00020273,2]
[368035886,1751001049673,-151.0,0.00020273,2]
[368035887,1751001049695,-151.0,0.00020273,2]
[368035888,1751001049716,-3004.48,0.00020273,2]
[368035889,1751001049735,-460.0,0.00020273,2]
[368035890,1751001049757,-460.0,0.00020273,2]
[368035891,1751001049780,-460.0,0.00020273,2]
[368035892,1751001049802,-614.67,0.00020273,2]
[368035893,1751001049824,-151.0,0.00020273,2]
[368035894,1751001049844,-245.065136,0.00020273,2]
[368035895,1751001049865,-2894.9,0.00020273,2]
[368035896,1751001049887,-460.0,0.00020273,2]
[368035897,1751001049908,-460.0,0.00020273,2]
[368035898,1751001049921,-151.0,0.00020273,2]
[368035899,1751001049930,-886.62,0.00020273,2]
[368035900,1751001049940,-1050.51,0.00020273,2]
[368035901,1751001049950,-1507.3,0.00020273,2]
[368035902,1751001049960,-1906.47,0.00020273,2]
[368035903,1751001049969,-151.0,0.00020273,2]
[368035904,1751001049979,-206.173734,0.00020273,2]
[368035905,1751001049988,-206.173734,0.00020273,2]
[368035906,1751001049998,-460.0,0.00020273,2]
[368035907,1751001050008,-460.0,0.00020273,2]
[368035908,1751001050017,-460.0,0.00020273,2]